Cogmind - Beta 16 @@@ ROGUE MODE // 2025.12.03 @ 19:23:20 Player: Prakos Result: Self-destructed Performance ------------- Evolutions (2) 1000 Regions Visited (5) 1000 Robots Destroyed (22) 110 Value Destroyed (305) 305 Prototype IDs (0) 0 Alien Tech Used (0) 0 Bonus (0) 0 TOTAL SCORE: 2415 Bonus ------- None Cogmind --------- Core Integrity 492/550 Matter 263/300 Energy 125/125 System Corruption 0% Temperature Cool (0) Movement Flying (120) Ox1 Location -8/Materials Parts ------- > --- POWER (1) -------- Light Ion Engine > --- PROPULSION (4) --- Flight Unit > --- UTILITY (4) ------ Improved Sensor Array Improved Signal Interpreter Reaction Control System Hacking Suite > --- WEAPON (2) ------- Hammer > --- INVENTORY (5) ---- Improved Shield Generator Missile Launcher EMP Trap EMP Trap EMP Trap Peak State ------------ > --- POWER ------------ Light Ion Engine > --- PROPULSION ------- Flight Unit Flight Unit Flight Unit > --- UTILITY ---------- Improved Sensor Array Improved Signal Interpreter Reaction Control System Hacking Suite > --- WEAPON ----------- Hammer > --- INVENTORY -------- Improved Shield Generator Missile Launcher EMP Trap EMP Trap EMP Trap [Rating: 18] Favorites ----------- Power Ion Engine Engine Ion Engine Propulsion Flight Unit Treads Light Treads Leg Aluminum Leg Flight Unit Flight Unit Utility Sensor Array Device Sensor Array Storage Small Storage Unit Processor Signal Interpreter Hackware Hacking Suite Protection Utility Shielding Weapon Hammer Energy Gun Medium Laser Energy Cannon Beam Cannon Ballistic Cannon Light Cannon Launcher Rocket Launcher Impact Weapon Hammer Build | -11 -10 -10 -9 -9 -8 ------- Run | Yrd Mat Min Mat Min Mat Slots Evolved 4 | . . . 2 . 2 Power . | . . . . . . Propulsion 2 | . . . 2 . . Utility 2 | . . . . . 2 Weapon . | . . . . . . Parts Attached 28 | 6 5 3 8 1 5 Power 3 | 1 . . 1 1 . Engine 3 | 1 . . 1 1 . Core . | . . . . . . Reactor . | . . . . . . Propulsion 7 | 2 . 1 4 . . Treads 1 | . . 1 . . . Leg 2 | 2 . . . . . Wheel . | . . . . . . Hover . | . . . . . . Flight 4 | . . . 4 . . Utility 9 | 1 1 . 2 . 5 Device 4 | . 1 . 1 . 2 Storage 1 | 1 . . . . . Processor 2 | . . . 1 . 1 Hackware 1 | . . . . . 1 Protection 1 | . . . . . 1 Artifact . | . . . . . . Weapon 9 | 2 4 2 1 . . Energy Gun 2 | 2 . . . . . Energy Cannon 2 | . 2 . . . . Ballistic Gun . | . . . . . . Ballistic Cannon 2 | . 2 . . . . Launcher 2 | . . 2 . . . Special Weapon . | . . . . . . Impact Weapon 1 | . . . 1 . . Slashing Weapon . | . . . . . . Piercing Weapon . | . . . . . . Special Melee Weapon . | . . . . . . Unidentified Prototypes . | . . . . . . Parts Lost 12 | . . 7 3 . 2 Power 2 | . . 1 1 . . Propulsion 5 | . . 2 1 . 2 Utility 1 | . . 1 . . . Weapon 4 | . . 3 1 . . Highest Loss Streak 7 | . . 7 2 . 1 To Critical Strikes . | . . . . . . Average Backups 4 | 2 6 7 2 2 1 Power . | . 1 1 . . . Propulsion 1 | 1 3 4 . . . Utility 1 | . . 1 2 2 1 Weapon . | . 2 . . . . Tool/Special . | . . . . . . Unused Backups 6 | . 2 1 . . 3 Power . | . . . . . . Propulsion 3 | . 2 1 . . . Utility 2 | . . . . . 2 Weapon 1 | . . . . . 1 Tool/Special . | . . . . . . Average Slot Usage (%) 87 | . 98 79 92 71 76 Engine 10 | . 14 10 9 5 9 Leg 9 | . 28 20 . . . Flight 21 | . . . 39 33 23 Device 10 | . 12 10 10 11 13 Storage 5 | . 14 14 . . . Processor 5 | . . . 10 11 9 Hackware 1 | . . . . . 9 Ballistic Cannon 7 | . 18 20 . . . Launcher 4 | . . . 10 . . Impact Weapon 6 | . . . 10 11 9 Peak Build Rating 18 | 6 8 8 10 7 18 Average Rating 8 | 4 7 6 9 6 16 On Entrance 5 | . 6 8 5 6 7 Avg Prop Armor Cover (%) . | . . . . . . Naked Turns . | . . . . . . Heaviest Build 17 | 14 17 17 16 6 7 Greatest Support 20 | 20 20 20 16 12 12 Greatest Overweight (x) 1 | . . 1 . . . Average Overweight (x) . | . . . . . . Largest Inventory Capacity 8 | 8 8 8 8 5 5 Average Capacity 6 | 7 8 8 5 5 5 Most Carried 8 | 3 8 8 7 5 5 Average Carried 4 | 2 6 7 2 4 4 Final Capacity 8 | 8 8 8 5 5 5 Final Carried 8 | 3 8 8 3 5 5 Class Distribution -------------------- 69% | Mutant 30% | Sprinter Dominant Class ---------------- Mutant | -10/Materials Mutant | -10/Mines Sprinter | -9/Materials Mutant | -9/Mines Mutant | -8/Materials Resources | -11 -10 -10 -9 -9 -8 ----------- Run | Yrd Mat Min Mat Min Mat Matter Collected 549 | 229 29 203 75 . 13 Remotely . | . . . . . . Salvage Created 344 | . 38 65 163 9 69 Parts 23 | . 12 3 5 . 3 Haulers Intercepted . | . . . . . . Recyclers Shooed . | . . . . . . Parts Field Recycled . | . . . . . . Retrieved Matter . | . . . . . . Parts Self-Destructed . | . . . . . . Prevented . | . . . . . . Parts Restored . | . . . . . . Kills | -11 -10 -10 -9 -9 -8 ------- Run | Yrd Mat Min Mat Min Mat Combat Hostiles Destroyed 16 | . 3 2 8 . 3 Melee 6 | . . . 4 . 2 Cannons 5 | . 3 2 . . . Classes Destroyed 6 | . 2 1 2 1 . Worker 1 | . . . . 1 . Recycler 1 | . . 1 . . . Operator 2 | . 1 . 1 . . Watcher 2 | . . . 1 . 1 Swarmer 15 | . 3 2 7 . 3 Sentry 1 | . . . 1 . . Best Kill Streak 4 | . 3 3 4 1 3 Combat Bots Only 3 | . 3 2 2 . 3 Max Kills in Single Turn 1 | . 1 1 1 1 1 Gunslinging . | . . . . . . Exploded . | . . . . . . Melee 1 | . . . 1 . 1 Uniques/NPCs Destroyed . | . . . . . . Combat | -11 -10 -10 -9 -9 -8 -------- Run | Yrd Mat Min Mat Min Mat Hostile Shots Fired 130 | . 17 34 58 . 21 Missed 41 | . 5 11 20 . 5 Hits 89 | . 12 23 38 . 16 Projectile 89 | . 12 23 38 . 16 AOE 12 | . . 12 . . . Damage Taken 1195 | . 100 637 303 . 155 Core 287 | . 6 164 59 . 58 Absorbed by Shields . | . . . . . . Core Remaining (%) 72 | 100 . 32 . 85 . Volleys Fired 21 | . 7 14 . . . Largest 2 | . 2 2 . . . Hottest 60 | . 60 60 . . . Shots Fired 39 | . 14 25 . . . Gun . | . . . . . . Cannon 37 | . 14 23 . . . Launcher 2 | . . 2 . . . Special . | . . . . . . Kinetic 37 | . 14 23 . . . Thermal . | . . . . . . Explosive 2 | . . 2 . . . Electromagnetic . | . . . . . . Robot Hit Streak 4 | . 2 4 . . . Robot Miss Streak 5 | . 5 3 . . . Penetration Max . | . . . . . . Secondary Targets . | . . . . . . Shots Hit Robots 47 | . 5 13 20 1 8 Core Hits 11 | . 4 5 1 . 1 Critical Kills . | . . . . . . Critical Parts Destroyed 8 | . . . 4 1 3 Critical Strikes 9 | . . 1 4 1 3 Blast 1 | . . 1 . . . Smash 8 | . . . 4 1 3 Melee Attacks 52 | . . . 36 1 15 Impact 52 | . . . 36 1 15 Slashing . | . . . . . . Piercing . | . . . . . . Sneak Attacks 7 | . . . 5 1 1 Combat Hostiles 3 | . . . 3 . . Follow-up Attacks . | . . . . . . Damage Inflicted 1259 | 4 88 209 708 42 208 Guns . | . . . . . . Cannons 280 | . 88 192 . . . Explosions 17 | . . 17 . . . Melee 958 | . . . 708 42 208 Ramming 4 | 4 . . . . . Kinetic 280 | . 88 192 . . . Thermal . | . . . . . . Explosive 17 | . . 17 . . . Electromagnetic . | . . . . . . Impact 958 | . . . 708 42 208 Slashing . | . . . . . . Piercing . | . . . . . . Highest Corruption . | . . . . . . Average Corruption . | . . . . . . Corruption Purged . | . . . . . . Corruption Blocked . | . . . . . . Overload Shots . | . . . . . . Overflow Damage 495 | . . 15 350 42 88 Projectiles 4 | . . 4 . . . Explosions 11 | . . 11 . . . Melee 480 | . . . 350 42 88 Knockbacks 4 | 1 . 1 2 . . Impact 3 | 1 . . 2 . . Kinetic 1 | . . 1 . . . Secondary . | . . . . . . Self-Inflicted Damage 75 | . . 75 . . . Shots 2 | . . 2 . . . Rammed . | . . . . . . Targets Rammed 1 | 1 . . . . . Kicked 1 | 1 . . . . . Crushed . | . . . . . . Highest Temperature . | . . . . . . Average Temperature . | . . . . . . Received Heat Transfer 18 | . . . . . 18 Siege Activations . | . . . . . . Martial Activations . | . . . . . . Shielding Activations . | . . . . . . Robots Disrupted . | . . . . . . Combat Hostiles . | . . . . . . Robots Corrupted 8 | . . . 5 1 2 Combat Hostiles 5 | . . . 4 . 1 Parts Fried 13 | . . . 6 1 6 Impact Corruptions 24 | . . . 16 2 6 Robots Melted . | . . . . . . Combat Hostiles . | . . . . . . Parts Melted . | . . . . . . Heat Transferred . | . . . . . . Parts Sabotaged . | . . . . . . Parts Stolen . | . . . . . . Parts Stripped . | . . . . . . Power Chain Reactions . | . . . . . . Alert | -11 -10 -10 -9 -9 -8 ------- Run | Yrd Mat Min Mat Min Mat Maximum Alert Level . | . . . . . . Low Security (%) 100 | 100 100 100 100 100 100 Level 1 . | . . . . . . Level 2 . | . . . . . . Level 3 . | . . . . . . Level 4 . | . . . . . . Level 5 . | . . . . . . High Security . | . . . . . . Max Security . | . . . . . . Peak Influence 147 | . 85 60 147 53 99 Initial 53 | . . 25 . 53 18 Average 51 | . 28 20 89 49 46 Influence Increases 628 | . 90 55 337 5 141 Destroy 0b10 Robot/C 320 | . 60 40 160 . 60 Destroy 0b10 Robot/NC 30 | . 5 5 10 5 5 Destroy Leader 64 | . 10 10 32 . 12 Successful Hack 4 | . . . . . 4 Disable Machine 45 | . 15 . 15 . 15 Partial Spotted 45 | . . . 30 . 15 Lose Combat Pursuer 120 | . . . 90 . 30 Influence Decreases 539 | . 25 120 200 94 100 Entered New Map 154 | . . 40 . 84 30 Time Decay 315 | . 25 60 170 10 50 Lost Part 70 | . . 20 30 . 20 Squads Dispatched 2 | . . . 1 . 1 Investigation . | . . . . . . Extermination . | . . . . . . Reinforcement 2 | . . . 1 . 1 Assault . | . . . . . . Garrison . | . . . . . . Intercept . | . . . . . . Searches Triggered . | . . . . . . Construction Impeded . | . . . . . . Haulers Reinforced . | . . . . . . Active Scanning Responses . | . . . . . . Cargo Convoy Interrupts . | . . . . . . Stealth | -11 -10 -10 -9 -9 -8 --------- Run | Yrd Mat Min Mat Min Mat Distress Signals 2 | . . . 1 . 1 Communications Jammed . | . . . . . . Distress Signals . | . . . . . . Times Spotted 29 | . 5 5 11 . 8 Peak Tracking Total 6 | . 3 3 6 . 6 Tactical Retreats 4 | . . . 2 . 2 Traps | -11 -10 -10 -9 -9 -8 ------- Run | Yrd Mat Min Mat Min Mat Traps Triggered . | . . . . . . Indirectly . | . . . . . . Trap Hack Attempts . | . . . . . . Triggered . | . . . . . . Disarmed . | . . . . . . Reprogrammed . | . . . . . . Reused . | . . . . . . Traps Extracted . | . . . . . . Installed . | . . . . . . Triggered . | . . . . . . Most Traps Carried 3 | . . . . 3 3 Machines | -11 -10 -10 -9 -9 -8 ---------- Run | Yrd Mat Min Mat Min Mat Machines Disabled 3 | . 1 . 1 . 1 Max in Single Turn 1 | . 1 . 1 . 1 Machines Repaired . | . . . . . . Machines Dismantled . | . . . . . . Machines Sabotaged . | . . . . . . Overloaded Fab Kills . | . . . . . . Hacking | -11 -10 -10 -9 -9 -8 --------- Run | Yrd Mat Min Mat Min Mat Machines Accessed 3 | . 2 . . . 1 Terminals 3 | . 2 . . . 1 Fabricators . | . . . . . . Repair Stations . | . . . . . . Recycling Units . | . . . . . . Scanalyzers . | . . . . . . Garrison Access . | . . . . . . Total Hacks 8 | . 6 . . . 2 Successful 2 | . 1 . . . 1 Failed 6 | . 5 . . . 1 Catastrophic 1 | . 1 . . . . Database Lockouts . | . . . . . . Manual 9 | . 6 . 1 . 2 Terminals 8 | . 6 . . . 2 Fabricators . | . . . . . . Repair Stations . | . . . . . . Recycling Units . | . . . . . . Scanalyzers . | . . . . . . Garrison Access . | . . . . . . Terminal Hacks . | . . . . . . Fabricator Hacks . | . . . . . . Repair Station Hacks . | . . . . . . Recycling Unit Hacks . | . . . . . . Scanalyzer . | . . . . . . Garrison Access Hacks . | . . . . . . Unauthorized Hacks 2 | . 1 . . . 1 Terminals 2 | . 1 . . . 1 Botnet 2 | . 1 . . . 1 Fabricators . | . . . . . . Repair Stations . | . . . . . . Recycling Units . | . . . . . . Scanalyzers . | . . . . . . Garrison Access . | . . . . . . Data Cores Recovered 1 | . 1 . . . . Used . | . . . . . . Hacking Detections 3 | . 2 . . . 1 Full Trace Events . | . . . . . . Feedback Events . | . . . . . . Feedback Blocked . | . . . . . . Robot Schematics Acquired . | . . . . . . Robots Built . | . . . . . . Authchips . | . . . . . . Time . | . . . . . . Total Robot Build Rating . | . . . . . . Part Schematics Acquired . | . . . . . . Parts Built . | . . . . . . Authchips . | . . . . . . Time . | . . . . . . Total Part Build Rating . | . . . . . . Part Studies Acquired . | . . . . . . Parts Repaired . | . . . . . . Time . | . . . . . . Parts Recycled . | . . . . . . Recycled Matter . | . . . . . . Retrieved Matter . | . . . . . . Retrieved Components . | . . . . . . Parts Scanalyzed . | . . . . . . Part Schematics Acquired . | . . . . . . Parts Damaged . | . . . . . . Bothacking | -11 -10 -10 -9 -9 -8 ------------ Run | Yrd Mat Min Mat Min Mat Used RIF Installer . | . . . . . . Robots Hacked . | . . . . . . Non-combat . | . . . . . . Combat . | . . . . . . Robot Hacks Applied . | . . . . . . Relay Couplers Released . | . . . . . . Fabnet Peak Effective % . | . . . . . . Robots Rewired . | . . . . . . Allies Hacked . | . . . . . . Hacks Repelled . | . . . . . . Allies | -11 -10 -10 -9 -9 -8 -------- Run | Yrd Mat Min Mat Min Mat Total Allies . | . . . . . . Largest Group . | . . . . . . Highest-Rated Group . | . . . . . . Highest-Rated Ally . | . . . . . . Total Orders . | . . . . . . Ally Attacks . | . . . . . . Total Damage . | . . . . . . Kills . | . . . . . . Allies Corrupted . | . . . . . . Allies Melted . | . . . . . . Intel | -11 -10 -10 -9 -9 -8 ------- Run | Yrd Mat Min Mat Min Mat Active Infowar (turns) 752 | . 125 139 340 29 119 Sensors 752 | . 125 139 340 29 119 Robot Analysis Total . | . . . . . . Derelict Logs Recovered 1 | . . 1 . . . Drone Launches . | . . . . . . Drone Recoveries . | . . . . . . Exploration | -11 -10 -10 -9 -9 -8 ------------- Run | Yrd Mat Min Mat Min Mat Turns Passed 920 | 77 134 205 356 29 119 Spaces Moved 595 | 57 81 125 198 51 83 Core 15 | 6 . 9 . . . Treads 25 | . . 25 . . . Legs 223 | 51 81 91 . . . Wheels . | . . . . . . Hover . | . . . . . . Flight 332 | . . . 198 51 83 Fastest Speed 31 | 50 120 100 31 34 34 Average Speed 72 | 112 120 126 32 34 34 Slowest Speed 160 | 120 120 160 34 34 37 Overloaded Moves . | . . . . . . Propulsion Burnouts . | . . . . . . Robots Hopped 4 | . . . 2 . 2 Potential Cave-ins . | . . . . . . Cave-ins Triggered . | . . . . . . Exploration Rate (%) 22 | 4 25 49 24 22 11 Regions Visited 5 Branch Regions 2 Pre-discovered Areas 1 | . . 1 . . . Known Exits Taken 2 | . . . 1 1 . Unknown Exits Taken 3 | 1 1 1 . . . Scrap Searched 1 | . . 1 . . . Spaces Dug . | . . . . . . Terrain Destroyed 8 | . . 8 . . . Melee . | . . . . . . Projectile . | . . . . . . AOE 8 | . . 8 . . . Terrain Rammed . | . . . . . . Walls Destroyed . | . . . . . . Machines Disabled . | . . . . . . Actions | -11 -10 -10 -9 -9 -8 --------- Run | Yrd Mat Min Mat Min Mat Total 948 | 66 105 148 424 60 145 Wait 227 | . . 2 182 5 38 Move 583 | 56 80 124 194 50 79 Hop 3 | . . . 1 . 2 Pick Up 19 | 3 6 3 1 3 3 Fast Attach 16 | 6 5 2 2 . 1 Attach 10 | . . 1 6 1 2 Detach 2 | . 2 . . . . Swap 2 | . . . . . 2 Drop 12 | . 5 2 2 . 3 Fire 21 | . 7 14 . . . Melee 52 | . . . 36 1 15 Ram . | . . . . . . Kick 1 | 1 . . . . . Crush . | . . . . . . Escape Stasis . | . . . . . . Rewire . | . . . . . . Trap . | . . . . . . Miscellaneous . | . . . . . . Route ------- -11/Scrapyard -10/Materials -10/Mines -9/Materials -9/Mines -8/Materials History --------- Turn | Location | Event 4 | -11/Scrapyard | Discovered new exit (range 15) 78 | -11/Scrapyard | Entered Materials 194 | -10/Materials | Discovered new exit (range 15) 212 | -10/Materials | Entered Mines 312 | -10/Mines | Build established: Mutant 318 | -10/Mines | Assembled infested the area 323 | -10/Mines | Assisted by a Guerilla fighting off Assembled 363 | -10/Mines | Core integrity fell below 50% 393 | -10/Mines | Lost 7 parts (1p2n1u3w) 404 | -10/Mines | Discovered new exit (range 7) 411 | -10/Mines | Received a Rocket Launcher from a helpful Derelict 417 | -10/Mines | Entered Materials 417 | -9/Materials | Evolved 2 slots: Propulsion x2 696 | -9/Materials | Discovered new exit (range 6) 698 | -9/Materials | Identified exit to Mines 773 | -9/Materials | Entered Mines 786 | -9/Mines | Found a hidden stash of uninstalled traps 792 | -9/Mines | Discovered new exit (range 7) 794 | -9/Mines | Identified exit to Materials 802 | -9/Mines | Entered Materials 802 | -8/Materials | Evolved 2 slots: Utility x2 921 | -8/Materials | Self-destructed Last Messages --------------- 00894_ Sneak attack on R-06 Scavenger. 00894_ ALERT: Hostiles spotted, dispatching reinforcements to Terminal M009. 00896_ S-10 Pest misfires. 00897_ K-01 Serf collects debris. 00901_ R-06 Scavenger collects Lgt. Assault Rifle. 00901_ K-01 Serf collects debris. 00902_ Acquired 13 matter. 00902_ S-10 Pest suffers critical hit (Smash). 00902_ Destroyed Lgt. Assault Rifle. 00902_ S-10 Pest system corrupted by crushing effect. 00902_ Lgt. Ion Engine fried. 00902_ Flight Unit fried. 00902_ S-10 Pest destroyed. 00904_ K-01 Serf collects debris. 00905_ Purification Channel disabled. 00907_ K-01 Serf collects debris. 00920_ Flight Unit destroyed. Map ----- +----------------------------------------------------+ | | | | | | | | | | | | | | | | | | | | | | | | | | | | | | | | | ?????????????????????????????????????????????????? | | ??????????????????????####???#???????????????????? | | ??????????????????????# [ ??? #??????????????????? | | ??????????????????????# " !#??????????????????? | | ??????????????????????# """ #??????????????????? | | ??????????????????????# """ #? ???????????????? | | ??????????#####???????# """ # ????????????????? | | ??????##### #???????# "" + ?????????????????? | | ??????#== #???????#= "" #??????????????????? | | ??????#== #???????#% @"" !#??????????????????? | | +#????#!! +???????#Y """ #??????????????????? | | ????#! #???????#g s #??????????????????? | | ????#! #???????# % k #??????????????????? | | ????#!! #############/#########+##?????????? | | ????##### r T w ????? | | ????????# " ?????? | | #????????# ################ ### ?????? | | #????????# #??????????????# #???????????? | | #????????# #??????????????# ]]!#???????????? | | #????????# #?????????????? w]]!#???????????? | | %###?????## ##?????????????# ]]!#???????????? | | ####### #?????????????# #???????????? | | #?????????????# #???????????? | | +?????????????# #???????????? | | #?????????????# #???????????? | | ###+### = #?????????????# #???????????? | | ####?????##### #?????????????###+##+##???????????? | | ?????????????? #?????????????????????????????????? | | ?????????????? #?????????????????????????????????? | | ?????????????? #?????????????????????????????????? | | ?????????????? #?????????????????????????????????? | | ?????????????? #?????????????????????????????????? | | ?????????????? #?????????????????????????????????? | | ?????????????? ??????????????????????????????????? | +----------------------------------------------------+ Best States ------------- Heat Dissipation 31 Energy Generation 10 Energy Capacity 250 Matter Stores 300 Matter Capacity 300 Sight Range 16 Robot Scan Range 15 Terrain Scan Density 10 Utility Shielding 33 Evasion (%) 63 Recoil Reduction 1 Offensive Hacking 10 Item Schematics ----------------- None Robot Schematics ------------------ None Fabricated ------------ Nothing Repaired ---------- Nothing Studied --------- None Alien Tech Used ----------------- None Achievements -------------- None Challenges ------------ None Game ------ Seed AssemblyAlertJammer Manual? 0 Play Time 00:23:15 Cumulative 65.6 hours Start 2025.12.03 @ 18:33:16 End 2025.12.03 @ 19:23:20 Sessions 1 Manual Loads 0 Difficulty Rogue Special Mode None Game No. 44 Rogue 44 Adventurer 0 Explorer 0 Win Type - Total 0 Types 0/0/0/0/0/0/0/0/0/0 Lore% 23 Gallery% 32 Achievement% 26 Wizard Run 0 Options --------- Layout 1 ASCII 0 Keyboard 0 Movement Numpad Keybinds 0 Fullscreen 1 Font 24/Smallcaps Map View 50x35 Zoom Use 0% Tactical HUD 1 Map Filters NONE Filters NONE Steam 1 RUN: 9877dea4-d139-43ac-bbd7-d36851fc02d5